fUST/lending_fUST_20260111
["ID","MTS","AMOUNT","RATE_DAILY","PERIOD"]
[401304690,1768120244896,-2000.0,0.00014916,2]
[401304691,1768120244905,-500.8125859,0.00014916,2]
[401304692,1768120244915,-650.76965904,0.00014916,2]
[401304693,1768120244924,-1465.81779273,0.00014916,2]
[401304694,1768120244934,-1191.81021696,0.00014916,2]
[401304695,1768120244943,-2000.0,0.00014916,2]
[401304696,1768120244952,-2000.0,0.00014916,2]
[401304697,1768120244961,-365.99256781,0.00014916,2]
[401304698,1768120244970,-2000.0,0.00014916,2]
[401304699,1768120244980,-2000.0,0.00014916,2]
[401304700,1768120244989,-2000.0,0.00014916,2]
[401304701,1768120244998,-1000.0,0.00014916,2]
[401304702,1768120245007,-1000.0,0.00015,2]
[401304703,1768120245016,-800.0,0.00015068,2]
[401304704,1768120245025,-578.7,0.000153,2]
[401304705,1768120245041,-175.84,0.000153,2]
[401304706,1768120245050,-1200.0,0.00015316,2]
[401304707,1768120245059,-2000.0,0.00015342,2]
[401304708,1768120245068,-2000.0,0.00015342,2]
[401304709,1768120245078,-2000.0,0.00015342,2]
[401304710,1768120245088,-1143.18421046,0.00015342,2]
[401304711,1768120245097,-2000.0,0.00015342,2]
[401304712,1768120245106,-500.0,0.00015342,2]
[401304713,1768120245116,-1004.51727604,0.00015342,2]
[401304714,1768120245126,-2000.0,0.00015342,2]
[401304715,1768120245135,-1501.01375621,0.00015342,2]
[401304716,1768120245144,-2000.0,0.00015342,2]
[401304717,1768120245153,-2000.0,0.00015342,2]
[401304718,1768120245164,-2000.0,0.00015342,2]
[401304719,1768120245175,-1167.31327235,0.00015464,2]
[401304720,1768120245186,-2500.0,0.00015464,2]
[401304721,1768120245196,-501.72405702,0.00015464,2]
[401304722,1768120245207,-2500.0,0.00015464,2]
[401304723,1768120245217,-2500.0,0.00015464,2]
[401304724,1768120245227,-2500.0,0.00015464,2]
[401304725,1768120245236,-2500.0,0.00015464,2]
[401304726,1768120245245,-2500.0,0.00015464,2]
[401304727,1768120245254,-2500.0,0.00015464,2]
[401304728,1768120245263,-740.65737214,0.00015648,2]
[401304729,1768120245272,-381.0,0.0001565,2]
[401304730,1768120245281,-381.0,0.00015661,2]
[401304731,1768120245291,-381.0,0.00015758,2]
[401304732,1768120245301,-578.7,0.000158,2]
[401304733,1768120245311,-175.84,0.000158,2]
[401304734,1768120245322,-1000.0,0.00015814,2]
[401304735,1768120245333,-1000.0,0.00015814,2]
[401304736,1768120245343,-1500.0,0.00015864,2]
[401304737,1768120245352,-555.48898116,0.0001589,2]
[401304738,1768120245362,-2500.0,0.0001589,2]
[401304739,1768120245371,-2500.0,0.0001589,2]
[401304740,1768120245380,-2500.0,0.0001589,2]
[401304741,1768120245392,-2500.0,0.0001589,2]
[401304742,1768120245401,-1634.65901332,0.0001589,2]
[401304743,1768120245411,-2500.0,0.0001589,2]
[401304744,1768120245421,-2000.0,0.0001589,2]
[401304745,1768120245430,-3000.0,0.00016012,2]
[401304746,1768120245440,-3000.0,0.00016012,2]
[401304747,1768120245450,-3000.0,0.00016012,2]
[401304748,1768120245460,-3000.0,0.00016012,2]
[401304749,1768120245470,-3000.0,0.00016012,2]
[401304750,1768120245479,-3000.0,0.00016012,2]
[401304751,1768120245489,-3000.0,0.00016012,2]
[401304752,1768120245499,-12757.23540207,0.00016054,2]
[401304753,1768120245509,-381.0,0.00016111,2]
[401304754,1768120245519,-381.0,0.00016131,2]
[401304756,1768120245529,-1600.00734843,0.00016164,2]
[401304758,1768120245538,-381.0,0.00016201,2]
[401304760,1768120245548,-381.0,0.00016251,2]
[401304762,1768120245558,-3588.20550987,0.00016259,2]
[401304764,1768120245567,-381.0,0.00016273,2]
[401304765,1768120245576,-578.7,0.000163,2]
[401304767,1768120245586,-175.84,0.000163,2]
[401304769,1768120245595,-381.0,0.00016317,2]
[401304770,1768120245604,-381.0,0.00016359,2]
[401304771,1768120245615,-1500.0,0.00016412,2]
[401304772,1768120245623,-468.6,0.00016438,2]
[401304773,1768120245633,-500.0,0.00016438,2]
[401304774,1768120245642,-281.92486594,0.00016438,2]
[401304775,1768120245652,-500.0,0.00016438,2]
[401304776,1768120245661,-500.0,0.00016438,2]
[401304777,1768120245670,-500.0,0.00016438,2]
[401304778,1768120245680,-500.0,0.00016438,2]
[401304779,1768120245689,-500.0,0.00016438,2]
[401304780,1768120245699,-500.0,0.00016438,2]
[401304781,1768120245709,-594.49843147,0.00016438,2]
[401304782,1768120245719,-502.60955562,0.00016438,2]
[401304783,1768120245729,-1552.92932298,0.00016438,2]
[401304784,1768120245739,-3000.0,0.00016438,2]
[401304785,1768120245748,-3000.0,0.00016438,2]
[401304786,1768120245758,-3000.0,0.00016438,2]
[401304787,1768120245767,-260.15865923,0.00016438,2]
[401304788,1768120245777,-381.0,0.00016506,2]
[401304789,1768120245787,-381.0,0.00016518,2]
[401304790,1768120245797,-3500.0,0.0001656,2]
[401304792,1768120245806,-3500.0,0.0001656,2]
[401304794,1768120245815,-3462.04250286,0.0001656,2]
[401304796,1768120245824,-3500.0,0.0001656,2]
[401304798,1768120245833,-3500.0,0.0001656,2]
[401304800,1768120245843,-1000.0,0.0001656,2]
[401304802,1768120245852,-1000.0,0.0001656,2]
[401304804,1768120245862,-381.0,0.00016573,2]
[401304806,1768120245871,-381.0,0.00016625,2]
[401304807,1768120245881,-2433.23713866,0.00016676,2]
[401304808,1768120245891,-381.0,0.00016716,2]
[401304810,1768120245985,-1329.90704878,0.00016747,2]
[401304811,1768120245994,-381.0,0.00016769,2]
[401304813,1768120246004,-381.0,0.00016791,2]
[401304815,1768120246014,-578.7,0.000168,2]
[401304816,1768120246023,-175.84,0.000168,2]
[401304817,1768120246032,-381.0,0.00016918,2]
[401304818,1768120246042,-381.0,0.00016924,2]
[401304819,1768120246051,-259.53961752,0.00016983,2]
[401304820,1768120246060,-1500.0,0.00016986,2]
[401304821,1768120246070,-3500.0,0.00016986,2]
[401304822,1768120246079,-3500.0,0.00016986,2]
[401304823,1768120246088,-3136.69894484,0.00017,2]
[401304824,1768120246097,-381.0,0.0001701,2]
[401304826,1768120246107,-381.0,0.00017015,2]
[401304828,1768120246116,-610.25587438,0.00017035,2]
[401304829,1768120246125,-381.0,0.00017039,2]
[401304830,1768120246134,-4000.0,0.00017108,2]
[401304831,1768120246143,-4000.0,0.00017108,2]
[401304832,1768120246153,-2378.46600243,0.00017108,2]
[401304833,1768120246163,-1000.0,0.00017108,2]
[401304834,1768120246171,-3474.09206942,0.00017128,2]
[401304835,1768120246182,-1208.67496696,0.0001716,2]
[401304836,1768120246191,-381.0,0.00017209,2]
[401304837,1768120246200,-381.0,0.00017211,2]
[401304838,1768120246210,-381.0,0.00017231,2]
[401304839,1768120246219,-1041.66666667,0.00017242,2]
[401304840,1768120246228,-578.7,0.000173,2]
[401304841,1768120246237,-175.84,0.000173,2]
[401304842,1768120246246,-1000.0,0.00017395,2]
[401304843,1768120246256,-1000.0,0.00017395,2]
[401304844,1768120246265,-579.0,0.00017395,2]
[401304845,1768120246274,-5000.0,0.00017412,2]
[401304846,1768120246284,-567.54835774,0.00017534,2]
[401304848,1768120246294,-500.0,0.00017534,2]
[401304850,1768120246303,-818.16802737,0.00017648,2]
[401304851,1768120246314,-3400.70849444,0.00017656,2]
[401304853,1768120246324,-2500.0,0.00017656,2]
[401304854,1768120246333,-281.87,0.00017676,2]
[401304855,1768120246343,-578.7,0.000178,2]
[401304856,1768120246353,-175.84,0.000178,2]
[401304857,1768120246362,-234.89,0.00018085,2]
[401304858,1768120246370,-578.7,0.000183,2]
[401304859,1768120246380,-175.84,0.000183,2]
[401304860,1768120246389,-151.0,0.00018301,2]
[401304861,1768120246398,-223.13477496,0.00018301,2]
[401304862,1768120246408,-461.67526834,0.00018301,2]
[401304863,1768120246417,-250.15738416,0.00018301,2]
[401304864,1768120246427,-151.0,0.00018301,2]
[401304865,1768120246437,-151.0,0.00018301,2]
[401304866,1768120246446,-151.0,0.00018301,2]
[401304867,1768120246455,-151.0,0.00018301,2]
[401304868,1768120246464,-151.0,0.00018301,2]
[401304869,1768120246473,-151.0,0.00018301,2]
[401304870,1768120246482,-151.0,0.00018301,2]
[401304871,1768120246492,-151.0,0.00018301,2]
[401304872,1768120246501,-151.0,0.00018301,2]
[401304873,1768120246510,-151.0,0.00018301,2]
[401304874,1768120246519,-151.0,0.00018301,2]
[401304875,1768120246529,-151.0,0.00018301,2]
[401304876,1768120246538,-151.0,0.00018301,2]
[401304877,1768120246547,-151.0,0.00018301,2]
[401304878,1768120246556,-151.0,0.00018301,2]
[401304879,1768120246565,-151.0,0.00018301,2]
[401304880,1768120246574,-151.0,0.00018301,2]
[401304881,1768120246583,-151.0,0.00018301,2]
[401304883,1768120246592,-151.0,0.00018301,2]
[401304884,1768120246601,-151.0,0.00018301,2]
[401304885,1768120246610,-151.0,0.00018301,2]
[401304886,1768120246620,-151.0,0.00018301,2]
[401304887,1768120246630,-151.0,0.00018301,2]
[401304888,1768120246640,-151.0,0.00018301,2]
[401304889,1768120246650,-151.0,0.00018301,2]
[401304890,1768120246661,-151.0,0.00018301,2]
[401304891,1768120246671,-151.0,0.00018301,2]
[401304892,1768120246681,-151.0,0.00018301,2]
[401304893,1768120246691,-151.0,0.00018301,2]
[401304894,1768120246701,-151.0,0.00018301,2]
[401304895,1768120246710,-151.0,0.00018301,2]
[401304896,1768120246720,-151.0,0.00018301,2]
[401304897,1768120246730,-151.0,0.00018301,2]
[401304898,1768120246740,-151.0,0.00018301,2]
[401304899,1768120246749,-151.0,0.00018301,2]
[401304900,1768120246758,-151.0,0.00018301,2]
[401304901,1768120246768,-151.0,0.00018301,2]
[401304902,1768120246777,-151.0,0.00018301,2]
[401304903,1768120246787,-151.0,0.00018301,2]
[401304904,1768120246796,-151.0,0.00018301,2]
[401304905,1768120246806,-151.0,0.00018301,2]
[401304906,1768120246816,-151.0,0.00018301,2]
[401304907,1768120246825,-468.6,0.00018315,2]
[401304908,1768120246835,-478.75725327,0.00018849,2]
[401304909,1768120246845,-5000.0,0.00018863,2]
[401304910,1768120246854,-578.7,0.000189,2]
[401304911,1768120246864,-175.84,0.000189,2]
[401304914,1768120246874,-303.10001603,0.000189,2]
[401304915,1768120246884,-303.10001603,0.00019089,2]
[401304916,1768120246893,-1000.0,0.00019135,2]
[401304917,1768120246903,-1000.0,0.00019135,2]
[401304918,1768120246912,-1000.0,0.00019135,2]
[401304919,1768120246921,-506.7938,0.00019178,2]
[401304920,1768120246930,-200.0,0.00019178,2]
[401304921,1768120246940,-506.7938,0.00019178,2]
[401304922,1768120246949,-506.7938,0.00019178,2]
[401304923,1768120246959,-2140.41,0.000192,2]
[401304924,1768120246968,-163.88,0.000192,2]
[401304925,1768120246978,-166.96,0.000192,2]
[401304926,1768120246987,-167.58,0.000192,2]
[401304927,1768120246996,-16224.21,0.000192,2]
[401304928,1768120247006,-303.10001603,0.00019278,2]
[401304929,1768120247015,-496.47127164,0.00019397,2]
[401304930,1768120247025,-578.7,0.000194,2]
[401304931,1768120247034,-175.84,0.000194,2]
[401304932,1768120247044,-303.10001603,0.00019467,2]
[401304933,1768120247053,-506.7938,0.00019589,3]
[401304934,1768120247063,-1208.67496696,0.00019625,2]
[401304935,1768120247072,-895.67868259,0.00019648,2]
[401304936,1768120247082,-303.10001603,0.00019656,2]
[401304937,1768120247091,-454.65002405,0.00019845,4]
[401304938,1768120247100,-578.7,0.000199,2]
[401304939,1768120247109,-175.84,0.000199,2]
[401304940,1768120247120,-514.84070869,0.00019945,2]
[401304941,1768120247129,-506.7938,0.0002,4]
[401304942,1768120247138,-151.97857558,0.0002,2]
[401304943,1768120247148,-52113.00553346,0.0002,2]
[401304944,1768120247157,-454.65002405,0.00020034,4]
[401304945,1768120247167,-468.6,0.00020192,2]
[401304946,1768120247176,-12757.23540207,0.00020219,2]
[401304947,1768120247185,-454.65002405,0.00020223,4]
[401304948,1768120247195,-578.7,0.000204,2]
[401304949,1768120247204,-175.84,0.000204,2]
[401304950,1768120247213,-454.65002405,0.00020412,4]
[401304951,1768120247222,-533.88981491,0.00020493,2]
[401304952,1768120247231,-3588.20550987,0.00020546,2]
[401304953,1768120247240,-454.65002405,0.00020601,4]
[401304954,1768120247250,-578.7,0.000209,2]
[401304955,1768120247259,-175.84,0.000209,2]
[401304956,1768120247269,-562.55157284,0.00021041,2]
[401304957,1768120247278,-1000.0,0.00021049,2]
[401304958,1768120247288,-1000.0,0.00021049,2]
[401304959,1768120247298,-1000.0,0.00021049,2]
[401304960,1768120247307,-715.0,0.00021049,2]
[401304961,1768120247321,-578.7,0.000214,2]
[401304962,1768120247331,-175.84,0.000214,2]
[401304963,1768120247340,-12011.78673207,0.000215,2]
[401304964,1768120247349,-973.18933782,0.00021648,2]
[401304965,1768120247361,-578.7,0.000219,2]
[401304966,1768120247370,-175.84,0.000219,2]
[401304967,1768120247380,-152.90727816,0.00021918,2]
[401304968,1768120247390,-468.6,0.00022069,2]
[401304969,1768120247400,-1208.67496696,0.00022089,2]
[401304970,1768120247409,-578.7,0.000224,2]
[401304971,1768120247418,-175.84,0.000224,2]
[401304972,1768120247428,-578.7,0.00023,2]
[401304973,1768120247437,-175.84,0.00023,2]
[401304974,1768120247447,-1000.0,0.00023153,10]
[401304975,1768120247457,-1000.0,0.00023153,10]
[401304976,1768120247467,-1000.0,0.00023153,10]
[401304977,1768120247476,-578.7,0.000235,2]
[401304978,1768120247486,-175.84,0.000235,2]
[401304979,1768120247495,-1050.69999304,0.00023648,2]
[401304980,1768120247505,-468.6,0.00023946,2]
[401304981,1768120247514,-44142.26753541,0.00024,10]
[401304982,1768120247524,-578.7,0.00024,2]
[401304983,1768120247534,-186.81,0.00024,14]
[401304984,1768120247543,-175.84,0.00024,2]
[401304985,1768120247554,-12757.23540207,0.00024384,2]
[401304986,1768120247563,-578.7,0.000245,2]
[401304987,1768120247573,-175.84,0.000245,2]
[401304988,1768120247583,-1208.67496696,0.00024554,2]
[401304989,1768120247592,-630.83049355,0.0002465,2]
[401304990,1768120247602,-500.0,0.00024658,2]
[401304991,1768120247611,-16224.21,0.000247,2]
[401304992,1768120247620,-500.0,0.00024795,2]
[401304993,1768120247630,-3588.20550987,0.00024832,2]
[401304994,1768120247640,-400097.821185,0.000249,2]
[401304995,1768120247649,-500.0,0.00024932,2]
[401304996,1768120247659,-578.7,0.00025,2]
[401304997,1768120247668,-2675.46555144,0.00025,2]
[401304998,1768120247677,-20757.85955183,0.00025,2]
[401304999,1768120247686,-10364.0,0.00025,2]
[401305000,1768120247696,-500.0,0.00025,2]
[401305001,1768120247705,-2074.08935166,0.00025,2]
[401305002,1768120247715,-759.6161654,0.00025,2]
[401305003,1768120247725,-175.84,0.00025,2]
[401305004,1768120247734,-500.0,0.00025069,2]
[401305005,1768120247744,-250.0,0.00025205,2]
[401305006,1768120247754,-500.0,0.00025206,2]
[401305007,1768120247763,-500.0,0.00025343,2]
[401305008,1768120247773,-261.77529652,0.00025479,14]
[401305009,1768120247782,-578.7,0.000255,2]
[401305010,1768120247791,-1000.0,0.000255,2]
[401305011,1768120247801,-175.84,0.000255,2]
[401305012,1768120247811,-1128.21064827,0.00025648,2]
[401305013,1768120247820,-350.0,0.00025753,2]
[401305014,1768120247830,-468.6,0.00025823,2]
[401305015,1768120247840,-2000.51544348,0.0002587,2]
[401305016,1768120247849,-578.7,0.00026,2]
[401305017,1768120247859,-53944.89189628,0.00026,30]
[401305018,1768120247868,-175.84,0.00026,2]
[401305019,1768120247878,-450.0,0.00026301,2]
[401305020,1768120247888,-578.7,0.000265,2]
[401305021,1768120247897,-175.84,0.000265,2]
[401305022,1768120247907,-550.0,0.00026849,2]
[401305023,1768120247917,-2999.99999901,0.00027,2]
[401305024,1768120247926,-1208.67496696,0.00027019,2]
[401305025,1768120248015,-578.7,0.000271,2]
[401305026,1768120248025,-175.84,0.000271,2]
[401305027,1768120248034,-181.17141011,0.00027118,2]
[401305028,1768120248044,-182.0,0.00027123,23]
[401305029,1768120248053,-16224.21,0.000272,2]
[401305030,1768120248063,-394.08412848,0.0002739,7]
[401305031,1768120248072,-702.10519323,0.00027397,5]
[401305032,1768120248081,-300.0,0.00027397,2]
[401305033,1768120248089,-300.0,0.00027397,2]
[401305034,1768120248099,-300.0,0.00027397,2]
[401305035,1768120248108,-300.0,0.00027397,2]
[401305036,1768120248117,-578.7,0.000276,2]
[401305037,1768120248126,-175.84,0.000276,2]
[401305038,1768120248138,-1205.72130349,0.00027648,2]
[401305039,1768120248147,-468.6,0.00027699,3]
[401305040,1768120248156,-15330.50011171,0.00028,2]
[401305041,1768120248165,-520.4204079,0.00028,2]
[401305042,1768120248174,-5000.0,0.00028037,2]
[401305043,1768120248183,-578.7,0.000281,2]
[401305044,1768120248192,-175.84,0.000281,2]
[401305045,1768120248201,-12757.23540207,0.00028549,2]
[401305046,1768120248211,-578.7,0.000286,2]
[401305047,1768120248221,-175.84,0.000286,2]
[401305048,1768120248230,-429431.6619482,0.0002876,14]
[401305049,1768120248240,-211.0,0.00028767,31]
[401305050,1768120248250,-210.77216325,0.0002898,5]
[401305051,1768120248260,-3382.93313115,0.0002902,2]
[401305052,1768120248270,-578.7,0.000291,2]
[401305053,1768120248280,-175.84,0.000291,2]
[401305054,1768120248289,-500.0,0.00029196,7]
[401305055,1768120248299,-1208.67496696,0.00029484,2]
[401305056,1768120248308,-1112.0,0.0002949,2]
[401305057,1768120248323,-1112.0,0.00029491,2]
[401305058,1768120248333,-2665.91589527,0.00029513,2]
[401305059,1768120248342,-468.6,0.00029576,4]
[401305060,1768120248351,-578.7,0.000296,2]
[401305061,1768120248360,-175.84,0.000296,2]
[401305062,1768120248370,-1283.23195871,0.00029648,2]
[401305063,1768120248379,-210.77216324,0.00029877,5]
[401305064,1768120248388,-431.28131142,0.0003,4]
[401305065,1768120248397,-5008.97139185,0.0003,10]
[401305066,1768120248406,-89030.96900453,0.0003,30]
[401305067,1768120248415,-258.50979211,0.0003,10]
[401305068,1768120248425,-175.84,0.000301,2]
[401305069,1768120248435,-300.0,0.00030137,5]
[401305070,1768120248444,-2099.00986107,0.0003014,120]
[401305071,1768120248453,-16224.21,0.000302,2]
[401305072,1768120248463,-5000.0,0.00030203,2]
[401305073,1768120248472,-162.0,0.00030959,43]
[401305074,1768120248481,-468.6,0.00031453,5]
[401305075,1768120248491,-1360.74261394,0.00031648,2]
[401305076,1768120248500,-1208.67496696,0.00031948,2]
[401305077,1768120248509,-536.72987461,0.00031972,7]
[401305078,1768120248518,-162.09527137,0.00032,120]
[401305079,1768120248528,-5000.0,0.0003237,2]
[401305080,1768120248537,-171.0,0.000324,120]
[401305081,1768120248546,-999.0,0.00032876,120]
[401305082,1768120248555,-500.0,0.00032877,8]
[401305083,1768120248565,-626.91,0.00032877,10]
[401305084,1768120248574,-522.43,0.00032877,10]
[401305085,1768120248584,-435.36,0.00032877,10]
[401305086,1768120248594,-300.0,0.00032877,5]
[401305087,1768120248603,-450.0,0.00032877,5]
[401305088,1768120248612,-1762.55867719,0.00033,4]
[401305089,1768120248621,-174.0,0.00033151,58]
[401305090,1768120248631,-1045039.0068,0.0003322,30]
[401305091,1768120248640,-225.859576,0.0003322,31]
[401305092,1768120248649,-151.0,0.0003322,31]
[401305093,1768120248658,-151.0,0.0003322,31]
[401305094,1768120248669,-151.0,0.0003322,31]
[401305095,1768120248678,-2362.302596,0.0003322,31]
[401305096,1768120248688,-2362.302596,0.0003322,31]
[401305097,1768120248698,-2362.302596,0.0003322,31]
[401305098,1768120248707,-2362.302596,0.0003322,31]
[401305099,1768120248717,-151.0,0.0003322,7]
[401305100,1768120248726,-151.0,0.0003322,7]
[401305101,1768120248736,-152.567384,0.0003322,31]
[401305102,1768120248745,-151.0,0.0003322,31]
[401305103,1768120248754,-151.0,0.0003322,31]
[401305104,1768120248764,-151.0,0.0003322,31]
[401305105,1768120248773,-151.0,0.0003322,31]
[401305106,1768120248782,-151.0,0.0003322,31]
[401305107,1768120248791,-151.0,0.0003322,31]
[401305108,1768120248801,-728.329358,0.0003322,31]
[401305109,1768120248811,-728.329358,0.0003322,31]
[401305110,1768120248820,-728.329358,0.0003322,31]
[401305111,1768120248830,-728.329358,0.0003322,31]
[401305112,1768120248839,-151.0,0.0003322,31]
[401305113,1768120248850,-151.0,0.0003322,31]
[401305114,1768120248859,-156.419626,0.0003322,31]
[401305115,1768120248869,-151.0,0.0003322,31]
[401305116,1768120248879,-151.0,0.0003322,2]
[401305117,1768120248888,-1112.0,0.00033299,2]
[401305118,1768120248898,-468.6,0.0003333,6]
[401305119,1768120248907,-2140.41,0.000334,30]
[401305120,1768120248917,-600.0,0.00033425,5]
[401305121,1768120248926,-1438.25326916,0.00033648,120]
[401305122,1768120248935,-210.0,0.00033699,5]
[401305123,1768120248945,-261.877,0.00033727,36]
[401305124,1768120248954,-999.0,0.00033972,120]
[401305125,1768120248963,-900.0,0.00033973,5]
[401305126,1768120248972,-1041.66666667,0.00034,30]
[401305127,1768120248981,-409.67,0.00034237,60]
[401305128,1768120248991,-165.11729757,0.00034246,120]
[401305129,1768120249001,-409.67,0.00034337,60]
[401305130,1768120249010,-1002.20117456,0.00034345,15]
[401305131,1768120249019,-1208.67496696,0.00034413,2]
[401305132,1768120249028,-409.67,0.00034437,60]
[401305133,1768120249037,-724.0,0.00034444,30]
[401305134,1768120249047,-690.0,0.00034444,30]
[401305135,1768120249056,-547.0,0.00034444,30]
[401305136,1768120249065,-16224.21,0.000345,14]
[401305137,1768120249075,-1200.0,0.00034521,5]
[401305138,1768120249084,-270.0,0.00034521,5]
[401305139,1768120249093,-151.0,0.00034536,31]
[401305140,1768120249103,-151.0,0.00034536,31]
[401305141,1768120249112,-151.0,0.00034536,31]
[401305142,1768120249121,-240.800368,0.00034536,31]
[401305143,1768120249130,-151.0,0.00034536,31]
[401305144,1768120249139,-151.0,0.00034536,31]
[401305145,1768120249148,-1371.756404,0.00034536,31]
[401305146,1768120249157,-1371.756404,0.00034536,31]
[401305147,1768120249166,-1371.756404,0.00034536,31]
[401305148,1768120249175,-1371.756404,0.00034536,31]
[401305149,1768120249184,-151.0,0.00034536,31]
[401305150,1768120249194,-151.0,0.00034536,31]
[401305151,1768120249203,-226.782828,0.00034536,31]
[401305152,1768120249212,-5000.0,0.00034536,3]
[401305153,1768120249221,-409.67,0.00034537,60]
[401305154,1768120249230,-409.67,0.00034637,60]
[401305155,1768120249239,-409.67,0.00034737,60]
[401305156,1768120249248,-409.67,0.00034837,60]
[401305157,1768120249257,-409.67,0.00034937,60]
[401305158,1768120249267,-310.81,0.00034964,30]
[401305159,1768120249276,-409.67,0.00035037,60]
[401305160,1768120249285,-163.313773,0.00035068,31]
[401305161,1768120249295,-151.0,0.00035068,31]
[401305162,1768120249304,-151.0,0.00035068,31]
[401305163,1768120249316,-151.0,0.00035068,31]
[401305164,1768120249326,-151.0,0.00035068,31]
[401305165,1768120249335,-301.393574,0.00035068,31]
[401305166,1768120249344,-151.0,0.00035068,31]
[401305167,1768120249355,-170.54126,0.00035068,31]
[401305168,1768120249364,-151.0,0.00035068,31]
[401305169,1768120249374,-164.871038,0.00035068,31]
[401305170,1768120249383,-151.0,0.00035068,31]
[401305171,1768120249393,-161.662681,0.00035068,31]
[401305172,1768120249403,-151.0,0.00035068,31]
[401305173,1768120249412,-151.0,0.00035068,31]
[401305174,1768120249422,-151.0,0.00035068,31]
[401305175,1768120249431,-151.0,0.00035068,31]
[401305176,1768120249440,-173.073557,0.00035068,31]
[401305177,1768120249449,-151.0,0.00035068,31]
[401305178,1768120249459,-173.073557,0.00035068,31]
[401305179,1768120249469,-151.0,0.00035068,31]
[401305180,1768120249479,-151.0,0.00035068,31]
[401305181,1768120249489,-173.073557,0.00035068,31]
[401305182,1768120249499,-173.073557,0.00035068,31]
[401305183,1768120249508,-999.0,0.00035068,120]
[401305184,1768120249518,-1500.0,0.00035068,5]
[401305185,1768120249527,-409.67,0.00035137,60]
[401305186,1768120249537,-468.6,0.00035207,30]
[401305187,1768120249546,-409.67,0.00035237,60]
[401305188,1768120249556,-200.0,0.00035237,120]
[401305189,1768120249566,-409.67,0.00035337,60]
[401305190,1768120249577,-330.0,0.00035342,5]
[401305191,1768120249587,-728.0,0.00035432,11]
[401305192,1768120249597,-409.67,0.00035437,60]
[401305193,1768120249607,-728.0,0.00035457,11]
[401305194,1768120249616,-728.0,0.00035458,11]
[401305195,1768120249625,-728.0,0.00035465,11]
[401305196,1768120249635,-728.0,0.00035466,11]
[401305197,1768120249644,-728.0,0.00035466,11]
[401305198,1768120249653,-728.0,0.00035477,11]
[401305199,1768120249663,-728.0,0.00035477,11]
[401305200,1768120249672,-709.0,0.00035477,11]
[401305201,1768120249681,-160.0,0.00035488,11]
[401305202,1768120249691,-728.0,0.00035496,11]
[401305203,1768120249700,-409.67,0.00035537,60]
[401305204,1768120249710,-500.0,0.00035616,30]
[401305205,1768120249719,-1800.0,0.00035616,5]
[401305206,1768120249729,-600.0,0.00035616,5]
[401305207,1768120249739,-200.0,0.00035619,120]
[401305208,1768120249748,-409.67,0.00035637,60]
[401305209,1768120249757,-1515.76392439,0.00035648,120]
[401305210,1768120249767,-578944.75907156,0.00035688,2]
[401305211,1768120249776,-151.0,0.00035688,31]
[401305212,1768120249786,-151.0,0.00035688,31]
[401305213,1768120249795,-700.258706,0.00035688,31]
[401305214,1768120249804,-151.0,0.00035688,31]
[401305215,1768120249892,-700.258706,0.00035688,31]